bitfinex-derivatives/quotes_ETHF0:USTF0_20240923
["timestamp","ask_amount","ask_price","bid_price","bid_amount"]
[1727079583629,0.37813,2644.7,2644.1,3.2078]
[1727079583824,0.37815,2644.6,2644.1,3.2078]
[1727079584225,0.37812,2644.8,2644.1,3.2078]
[1727079584632,0.37813,2644.7,2644.1,3.2078]
[1727079585133,0.37812,2644.8,2644.1,3.2078]
[1727079586031,3.2078,2644.9,2644.1,3.2078]
[1727079586032,3.58591,2644.9,2644.4,3.2078]
[1727079586234,3.2078,2644.9,2644.4,3.2078]
[1727079586538,0.37814,2644.7,2644.4,3.2078]
[1727079586935,3.2078,2644.9,2644.0,33.2861]
[1727079587237,0.37815,2644.6,2644.0,33.2861]
[1727079587443,0.37816,2644.5,2644.0,33.2861]
[1727079587735,0.37816,2644.5,2644.0,29.7]
[1727079587736,0.37818,2644.4,2644.0,29.7]
[1727079587963,0.37819,2644.3,2644.0,29.7]
[1727079588129,3.49529,2644.8,2643.9,0.7516]
[1727079588130,3.2078,2644.4,2643.9,0.7516]
[1727079588336,3.6068,2644.7,2643.9,0.7516]
[1727079588536,0.399,2644.7,2644.0,29.7]
[1727079588737,0.37815,2644.6,2644.0,29.7]
[1727079589539,0.37815,2644.6,2644.1,3.2078]
[1727079589732,0.37814,2644.7,2644.1,3.2078]
[1727079590235,4.127,2644.9,2644.4,3.2078]
[1727079590236,4.50511,2644.9,2644.4,3.2078]
[1727079590432,0.37811,2644.9,2644.5,0.3727]
[1727079590632,3.6068,2645.0,2644.5,0.3727]
[1727079590633,3.2078,2645.0,2644.5,0.3727]
[1727079590834,3.5859,2645.0,2644.5,0.3727]
[1727079591039,3.5859,2645.0,2644.6,0.3675]
[1727079591338,3.2078,2645.0,2644.6,0.3675]
[1727079591928,0.37808,2645.1,2644.6,0.3675]
[1727079592133,3.58581,2645.6,2644.7,9.5386]
[1727079592435,0.37799,2645.7,2645.1,0.37806]
[1727079592631,0.37802,2645.5,2645.2,0.3604]
[1727079593237,0.37801,2645.6,2645.2,0.3604]
[1727079593534,0.37799,2645.7,2645.2,0.3604]
[1727079593730,3.2078,2645.9,2645.2,0.3604]
[1727079593731,3.58576,2645.9,2645.3,0.37804]
[1727079594038,3.9838,2646.2,2645.4,30.0668]
[1727079594241,0.37799,2645.7,2645.4,30.0668]
[1727079594832,0.37798,2645.8,2645.4,30.0668]
[1727079595636,3.58576,2645.9,2645.4,30.0668]
[1727079595837,3.2078,2645.9,2645.4,30.0668]
[1727079596030,0.377,2646.2,2645.5,0.37801]
[1727079596031,0.37792,2646.2,2645.5,0.37801]
[1727079596233,0.37793,2646.1,2645.4,33.65262]
[1727079596539,0.37793,2646.1,2645.5,0.37801]
[1727079596933,0.37793,2646.1,2645.4,33.2746]
[1727079596934,3.2078,2646.1,2645.4,33.2746]
[1727079597134,0.37798,2645.8,2645.4,33.2746]
[1727079598540,3.2078,2646.1,2645.4,33.2746]
[1727079598729,0.9449,2645.9,2645.4,3.5746]
[1727079598928,3.2078,2645.6,2645.2,0.3604]
[1727079599739,3.2078,2645.6,2645.2,30.0604]
[1727079599930,3.2078,2645.7,2645.2,0.3604]
[1727079600135,0.378,2645.6,2645.2,0.3604]
[1727079600335,0.37799,2645.7,2645.2,30.0604]
[1727079600738,3.58576,2645.9,2645.3,0.37804]
[1727079600939,0.37797,2645.8,2645.2,30.43845]
[1727079601145,3.2078,2645.9,2645.3,3.2078]
[1727079601437,0.37789,2646.4,2645.7,2.55]
[1727079601644,0.37788,2646.5,2645.8,1.1725]
[1727079601842,0.37789,2646.4,2645.9,0.37795]
[1727079602038,0.37789,2646.4,2646.0,3.2078]
[1727079602241,0.37789,2646.4,2645.8,1.1725]
[1727079602242,0.37789,2646.4,2645.9,0.37796]
[1727079602437,0.37789,2646.4,2646.0,3.2078]
[1727079602644,3.2078,2646.9,2646.0,5.7578]
[1727079602839,3.2078,2646.9,2646.1,0.37792]
[1727079603044,0.37787,2646.6,2646.1,0.37792]
[1727079603441,0.37789,2646.4,2646.0,3.2078]
[1727079604042,0.37788,2646.5,2646.0,0.37794]
[1727079604247,0.37788,2646.5,2646.0,3.58574]
[1727079604637,0.37789,2646.4,2645.9,0.37795]
[1727079604833,0.37792,2646.2,2645.8,1.1725]
[1727079605237,0.94465,2646.6,2646.0,3.2078]
[1727079605439,0.3779,2646.3,2646.0,3.2078]
[1727079605646,0.37789,2646.4,2646.0,3.2078]
[1727079606048,0.3779,2646.3,2646.0,3.2078]
[1727079606236,0.37789,2646.4,2646.0,3.2078]
[1727079607351,0.37791,2646.3,2646.0,3.2078]
[1727079607652,0.37789,2646.4,2646.0,3.2078]
[1727079607837,3.2078,2646.7,2646.0,3.2078]
[1727079608039,0.37789,2646.5,2646.0,3.2078]
[1727079608244,3.2078,2646.7,2646.4,0.37788]
[1727079608446,3.2078,2647.4,2646.5,0.7619]
[1727079608645,3.2078,2647.4,2646.5,1.13976]
[1727079608944,3.2078,2647.4,2646.6,32.9078]
[1727079609141,0.37778,2647.2,2646.6,32.9078]
[1727079609550,0.37777,2647.3,2646.6,33.28565]
[1727079609740,0.3986,2647.5,2646.6,32.9078]
[1727079609939,0.37778,2647.2,2646.6,32.9078]
[1727079610352,0.37776,2647.3,2646.7,3.2078]
[1727079610653,3.2078,2648.0,2647.1,0.37778]
[1727079610840,0.3777,2647.8,2647.2,0.7591]
[1727079611046,3.2078,2648.0,2647.2,0.7591]
[1727079611047,0.37768,2647.9,2647.2,1.13687]
[1727079611859,0.37768,2647.9,2647.2,0.7591]
[1727079612045,0.37768,2647.9,2647.2,1.13686]
[1727079612346,0.3777,2647.7,2647.3,3.2078]
[1727079612744,3.2078,2648.0,2647.3,3.2078]
[1727079613255,0.37771,2647.7,2647.3,3.2078]
[1727079613446,3.2078,2648.0,2647.3,3.2078]
[1727079613648,0.37768,2647.9,2647.3,3.2078]
[1727079613842,3.2078,2648.0,2647.3,3.2078]
[1727079614048,0.37772,2647.6,2647.3,3.2078]
[1727079614353,0.94412,2648.1,2647.2,0.3978]
[1727079614354,5.7578,2647.7,2647.2,0.3978]
[1727079614654,0.37778,2647.2,2646.7,3.5805]
[1727079614848,3.2078,2647.4,2646.7,0.3727]
[1727079614849,0.37779,2647.1,2646.7,0.3727]
[1727079615260,0.3778,2647.0,2646.7,0.3727]
[1727079615449,0.37783,2646.8,2646.7,0.3727]
[1727079615649,0.37782,2646.9,2646.7,0.3727]
[1727079615957,3.2078,2647.0,2646.7,0.3727]
[1727079616455,0.37778,2647.2,2646.7,0.3727]
[1727079616750,0.37779,2647.1,2646.7,0.3727]
[1727079617155,0.37783,2646.8,2646.7,0.3727]
[1727079617356,0.37785,2646.7,2646.3,32.9078]
[1727079617546,3.2078,2647.3,2646.3,32.9078]
[1727079617751,0.37779,2647.1,2646.5,0.37787]
[1727079617951,3.2078,2647.3,2646.6,0.3936]
[1727079618160,3.58556,2647.3,2646.7,3.6067]
[1727079618451,3.58556,2647.3,2646.7,0.3989]
[1727079618452,3.2078,2647.3,2646.7,0.3989]
[1727079618650,0.37779,2647.1,2646.7,0.3989]
[1727079618858,0.37778,2647.2,2646.7,0.3989]
[1727079619453,0.37779,2647.1,2646.7,3.6067]
[1727079619653,0.37779,2647.1,2646.7,0.3989]
[1727079619871,0.37783,2646.9,2646.7,0.3989]
[1727079620150,0.94438,2647.4,2646.7,0.3989]
[1727079620151,3.2078,2647.1,2646.7,0.3989]
[1727079620353,0.37782,2646.9,2646.7,0.3989]
[1727079620957,0.37781,2647.0,2646.7,0.3989]
[1727079621154,3.2078,2647.2,2646.7,0.3989]
[1727079621155,0.37779,2647.1,2646.7,0.3989]
[1727079621356,0.37779,2647.1,2646.8,0.3826]
[1727079622061,0.37778,2647.2,2646.8,0.3826]
[1727079622461,0.37779,2647.1,2646.8,0.3826]
[1727079622963,4.90581,2647.6,2646.8,0.3826]
[1727079622964,3.2078,2647.3,2646.8,0.3826]
[1727079623265,0.3778,2647.0,2646.8,0.3826]
[1727079624356,0.37779,2647.1,2646.8,0.3826]
[1727079625254,3.2078,2647.3,2646.8,0.3826]
[1727079625755,3.2078,2647.3,2646.3,32.9078]
[1727079625970,3.2078,2647.3,2646.7,0.1081]
[1727079626277,0.94437,2647.4,2646.7,0.48594]
[1727079626278,0.37779,2647.1,2646.7,0.48594]
[1727079626477,0.37779,2647.1,2646.7,0.1081]
[1727079626771,0.37779,2647.1,2646.7,0.48594]
[1727079626978,0.37779,2647.1,2646.7,0.1081]
[1727079627381,4.5331,2647.9,2647.0,2.55]
[1727079627583,4.5331,2647.9,2647.2,0.37777]
[1727079627584,0.37771,2647.7,2647.2,0.37777]
[1727079627785,4.152,2647.9,2647.1,1.15308]
[1727079627786,0.37772,2647.6,2647.1,1.15308]
[1727079628284,0.37772,2647.6,2647.1,0.7753]
[1727079628583,3.2078,2647.9,2647.2,33.28556]
[1727079628776,0.37772,2647.6,2647.2,30.07777]
[1727079629579,3.2078,2647.9,2647.2,29.7]
[1727079629780,0.7546,2648.0,2647.2,29.7]
[1727079629781,0.37776,2647.3,2647.2,29.7]
[1727079629981,4.15202,2647.8,2647.2,29.7]
[1727079630180,0.37772,2647.6,2647.2,30.07777]
[1727079631090,0.37773,2647.5,2647.2,29.7]
[1727079631293,0.37772,2647.6,2647.2,30.07776]
[1727079631791,0.37774,2647.5,2647.2,33.28556]
[1727079632493,0.37775,2647.4,2647.2,29.7]
[1727079633194,0.37776,2647.3,2647.2,29.7]
[1727079633382,0.37783,2646.8,2646.7,0.1081]
[1727079633579,0.37782,2646.9,2646.7,0.1081]
[1727079633891,0.37779,2647.1,2646.8,29.7]
[1727079634088,0.37779,2647.1,2646.9,0.3612]
[1727079634284,0.3778,2647.0,2646.9,0.3612]
[1727079634483,0.37779,2647.1,2646.9,0.3612]
[1727079634683,3.2078,2647.2,2646.9,0.3612]
[1727079634684,0.3778,2647.0,2646.9,0.3612]
[1727079636492,0.3778,2647.0,2646.8,29.7]
[1727079636703,0.37783,2646.8,2646.7,0.1081]
[1727079637389,3.58563,2646.8,2646.7,0.1081]
[1727079638001,3.2078,2646.8,2646.7,0.1081]
[1727079638482,0.37781,2647.0,2646.7,0.1081]
[1727079638686,0.37781,2647.0,2646.5,3.9771]
[1727079638687,0.37782,2646.9,2646.5,0.7693]
[1727079638888,0.37781,2647.0,2646.5,0.7693]
[1727079639088,3.2078,2647.3,2646.6,3.58565]
[1727079639293,0.37777,2647.2,2646.6,0.37785]
[1727079639488,0.37776,2647.3,2646.7,0.37784]
[1727079639692,0.37776,2647.3,2646.9,3.2078]
[1727079639998,3.2078,2647.6,2646.6,2.55]
[1727079640293,0.37774,2647.5,2647.0,0.3778]
[1727079640492,3.2078,2647.6,2647.1,1.14578]
[1727079640493,3.58552,2647.6,2647.1,1.14578]
[1727079640699,3.2078,2647.6,2647.1,0.768]
[1727079640890,0.37773,2647.5,2647.1,0.768]
[1727079641195,3.2078,2647.6,2647.2,0.37777]
[1727079641390,3.5981,2647.9,2647.2,3.2078]
[1727079641590,0.37773,2647.6,2647.2,0.37777]
[1727079641908,0.37772,2647.6,2647.1,0.768]
[1727079642091,0.37772,2647.6,2647.2,0.37777]
[1727079642796,0.37771,2647.7,2647.3,30.07775]
[1727079642987,0.37772,2647.6,2647.3,29.7]
[1727079643392,0.37773,2647.5,2647.3,29.7]
[1727079643585,0.37772,2647.6,2647.3,29.7]
[1727079644396,0.37772,2647.6,2647.3,30.07776]
[1727079644693,0.3777,2647.8,2647.3,29.7]
[1727079644996,0.37768,2647.9,2647.5,0.37772]
[1727079645187,0.94412,2648.1,2647.3,29.7]
[1727079645387,0.37769,2647.8,2647.4,0.37774]
[1727079646389,0.94412,2648.1,2647.4,2.06]
[1727079646390,0.3777,2647.7,2647.4,2.06]
[1727079646789,0.37771,2647.7,2647.3,30.07775]
[1727079648193,0.37771,2647.7,2647.6,2.06]
[1727079649495,0.37771,2647.7,2647.3,29.7]
[1727079649496,0.37774,2647.4,2647.3,29.7]
[1727079649694,3.2078,2647.5,2647.1,0.3891]
[1727079649997,0.37777,2647.3,2647.1,0.3891]
[1727079650398,0.37777,2647.2,2647.1,0.3891]
[1727079650601,0.37777,2647.2,2646.6,2.43785]
[1727079650602,0.94447,2647.1,2646.6,0.96897696]
[1727079650802,0.94447,2647.1,2646.5,0.3912]
[1727079650803,0.37785,2646.7,2646.5,0.3912]
[1727079651006,0.94447,2647.1,2646.6,29.7]
[1727079651007,0.37783,2646.9,2646.6,29.7]
[1727079651303,0.7567,2647.1,2646.6,29.7]
[1727079651511,0.37781,2647.0,2646.6,32.13786]
[1727079651806,0.37778,2647.2,2646.8,2.43782]
[1727079652002,0.37779,2647.1,2646.8,2.06]
[1727079652396,0.37779,2647.1,2646.7,0.37783]
[1727079652603,0.37779,2647.1,2646.7,3.58563]
[1727079653006,0.37778,2647.2,2646.7,3.2078]
[1727079653203,0.37777,2647.3,2646.9,0.37781]
[1727079653403,4.66885615,2647.5,2646.7,6.71677696]
[1727079653404,0.37778,2647.2,2646.8,1.34679696]
[1727079653603,0.37778,2647.2,2646.9,0.7621]
[1727079654110,0.37779,2647.1,2646.9,0.7621]
[1727079655605,1.46105615,2647.4,2646.7,0.96897696]
[1727079655799,0.37783,2646.8,2646.7,0.96897696]
[1727079656005,0.37783,2646.8,2646.6,30.66897696]
[1727079656306,0.37784,2646.7,2646.6,29.7]
[1727079656509,0.37784,2646.8,2646.6,29.7]
[1727079656699,0.37784,2646.7,2646.6,29.7]
[1727079656898,0.37785,2646.7,2646.5,0.3912]
[1727079657096,0.94454,2646.9,2646.5,0.3912]
[1727079657316,0.94454,2646.9,2646.6,29.7]
[1727079657498,0.37784,2646.7,2646.6,29.7]
[1727079657701,0.37782,2646.9,2646.6,29.7]
[1727079658217,3.58559,2647.1,2646.7,0.37784]
[1727079658513,1.94807487,2647.4,2646.7,6.71677696]
[1727079658514,1.46105615,2647.4,2646.7,6.71677696]
[1727079658821,4.66885615,2647.5,2646.8,1.36527696]
[1727079659002,0.37777,2647.3,2646.9,0.37781]
[1727079659310,0.37777,2647.3,2646.9,0.74801]
[1727079659512,0.37777,2647.2,2646.9,0.74801]
[1727079659709,0.3778,2647.0,2646.9,0.3702]
[1727079659912,0.37779,2647.1,2646.9,0.3702]
[1727079660607,0.37778,2647.2,2646.9,0.3702]
[1727079660805,0.37779,2647.1,2646.9,0.3702]
[1727079661712,0.94445,2647.2,2646.7,0.96897696]
[1727079661912,0.37784,2646.8,2646.6,29.7]
[1727079662706,0.37782,2646.9,2646.6,29.7]
[1727079662907,0.37783,2646.8,2646.6,29.7]
[1727079663512,4.66885615,2647.2,2646.6,29.7]
[1727079663722,0.3778,2647.1,2646.7,0.37784]
[1727079664018,0.3778,2647.1,2646.8,0.37783]
[1727079664417,3.2078,2647.2,2646.9,0.37781]
[1727079664418,3.58558,2647.2,2646.9,0.37781]
[1727079664715,0.37775,2647.4,2647.1,0.37777]
[1727079664918,0.37776,2647.3,2647.2,0.3717]
[1727079665109,0.94434,2647.5,2647.2,0.3717]
[1727079665110,0.37775,2647.4,2647.2,0.3717]
[1727079665307,3.40913102,2648.0,2647.3,3.50897696]
[1727079665509,1.83870615,2648.1,2647.7,0.3777]
[1727079665709,0.7278,2648.2,2647.8,0.3682]
[1727079665906,0.37767,2648.0,2647.9,29.7]
[1727079666312,4.15447,2648.0,2647.9,29.7]
[1727079667118,0.3602,2648.2,2647.9,29.7]
[1727079667307,1.46105615,2648.4,2647.9,29.7]
[1727079667624,3.2078,2648.5,2648.0,0.37764]
[1727079667915,3.2078,2648.5,2647.9,30.68268128]
[1727079668218,3.58539,2648.5,2647.9,30.07767]
[1727079668413,3.58539,2648.5,2647.9,29.7]
[1727079668606,3.2078,2648.5,2647.9,29.7]
[1727079669008,3.2078,2648.5,2647.9,30.07766]
[1727079669315,3.2078,2648.5,2648.0,0.37766]
[1727079670313,3.58539,2648.5,2647.9,30.07767]
[1727079670517,0.3776,2648.4,2647.9,29.7]
[1727079671009,0.3776,2648.4,2647.9,30.07767]
[1727079671413,0.37764,2648.2,2647.9,29.7]
[1727079671627,0.37762,2648.3,2647.9,29.7]
[1727079672214,0.37764,2648.2,2647.9,29.7]
[1727079672607,0.37765,2648.1,2647.9,29.7]
[1727079673110,0.37764,2648.2,2647.9,29.7]
[1727079673315,0.7426,2648.4,2647.9,29.7]
[1727079673526,0.37762,2648.3,2647.9,29.7]
[1727079673821,0.7426,2648.4,2647.8,0.3682]
[1727079674020,0.37766,2648.0,2647.8,0.3682]
[1727079674519,0.37767,2647.9,2647.8,30.0682]
[1727079674722,4.15447,2647.9,2647.3,0.98268128]
[1727079674925,0.3777,2647.7,2647.3,4.56838128]
[1727079675223,0.37772,2647.6,2647.4,29.7]
[1727079675522,0.37773,2647.5,2647.4,29.7]
[1727079675712,3.2078,2647.9,2647.4,29.7]
[1727079675919,0.37771,2647.7,2647.4,29.7]
[1727079676118,0.37772,2647.6,2647.4,29.7]
[1727079676428,0.37773,2647.5,2647.4,29.7]
[1727079676615,3.2078,2647.5,2647.1,0.362]
[1727079676821,2.09574,2647.8,2647.1,0.362]
[1727079676822,0.37775,2647.4,2647.1,0.362]
[1727079677116,0.37775,2647.4,2647.2,29.7]
[1727079678425,0.37776,2647.3,2647.2,29.7]
[1727079679327,3.2078,2647.9,2647.2,29.7]
[1727079679515,3.2078,2648.0,2647.5,0.37773]
[1727079679720,0.37765,2648.1,2647.6,0.3777]
[1727079680026,1.94807487,2648.6,2647.9,0.37766]
[1727079680027,8.79585615,2648.6,2647.9,0.37766]
[1727079680221,0.37761,2648.4,2648.0,0.3875]
[1727079680424,0.37761,2648.4,2648.0,0.76516]
[1727079680722,0.37762,2648.3,2648.0,0.3875]
[1727079681727,0.37761,2648.4,2648.0,0.76516]
[1727079682526,0.37761,2648.4,2648.1,29.7]
[1727079682922,0.37762,2648.3,2648.1,29.7]
[1727079683226,0.37763,2648.2,2648.1,29.7]
[1727079684025,0.94401,2648.4,2647.7,0.38]
[1727079684026,3.2078,2648.3,2647.7,0.38]
[1727079684220,3.5945,2648.3,2647.6,3.2078]
[1727079684420,0.94412,2648.1,2647.3,5.11768128]
[1727079684623,0.37769,2647.8,2647.4,30.07774]
[1727079684835,3.5945,2648.3,2647.4,29.7]
[1727079685128,3.97212,2648.3,2647.9,0.37767]
[1727079685339,3.97212,2648.3,2647.6,3.2078]
[1727079685340,3.2078,2648.3,2647.6,3.2078]
[1727079685632,3.2078,2648.3,2647.9,0.37766]
[1727079685633,0.37762,2648.3,2647.9,0.37766]
[1727079685820,0.3976,2648.5,2647.7,0.7581]
[1727079686018,0.3776,2648.4,2648.0,0.37764]
[1727079686435,0.37759,2648.5,2648.1,0.37763]
[1727079686632,0.3776,2648.4,2648.1,0.37763]
[1727079686923,0.3776,2648.4,2648.0,0.37765]
[1727079687313,0.37761,2648.4,2648.0,0.37765]
[1727079687514,0.37762,2648.3,2648.0,0.37765]
[1727079688614,4.127,2648.8,2648.0,3.2078]
[1727079688818,4.51773,2648.9,2648.0,5.7478]
[1727079688819,0.7291,2648.9,2648.0,5.7478]
[1727079689015,0.37757,2648.6,2648.3,0.3776]
[1727079689224,0.37759,2648.5,2648.2,0.37762]
[1727079689528,0.37758,2648.6,2648.3,0.37761]
[1727079689921,0.37759,2648.5,2648.2,0.37762]
[1727079690214,3.9369,2648.9,2648.0,5.7478]
[1727079690215,0.3776,2648.4,2648.1,0.37764]
[1727079690414,3.9369,2648.9,2648.0,0.37765]
[1727079690415,0.37762,2648.3,2648.0,0.37765]
[1727079690825,0.37763,2648.2,2647.9,0.37766]
[1727079691334,0.37763,2648.2,2647.7,3.9659]
[1727079691335,0.37762,2648.3,2648.0,0.37765]
[1727079691720,0.37761,2648.4,2648.1,0.37764]
[1727079691930,0.37761,2648.4,2647.7,3.9659]
[1727079691931,0.37759,2648.5,2648.2,0.37763]
[1727079692132,0.3776,2648.4,2648.1,0.37763]
[1727079692830,0.37759,2648.5,2648.2,0.37763]
[1727079693727,0.9439,2648.7,2648.0,3.2078]
[1727079693927,0.37762,2648.3,2648.0,3.58545]
[1727079694122,0.37763,2648.2,2648.0,3.2078]
[1727079694325,5.2678,2648.6,2647.9,2.06]
[1727079694624,0.94379,2649.0,2648.4,5.2678]
[1727079694932,0.37756,2648.7,2648.5,0.372]
[1727079695627,0.37756,2648.7,2648.6,29.7]
[1727079695821,0.37755,2648.8,2648.6,29.7]
[1727079696023,3.2078,2648.7,2647.9,0.98268128]
[1727079696226,2.06,2648.2,2647.7,0.3712]
[1727079696424,3.00408,2648.2,2647.8,29.7]
[1727079696628,0.37765,2648.1,2647.8,29.7]
[1727079696828,0.37763,2648.2,2647.8,30.07768]
[1727079697127,0.7324,2648.7,2648.1,0.37764]
[1727079697334,0.3776,2648.5,2648.2,0.372]
[1727079697733,0.3776,2648.4,2648.2,0.372]
[1727079698030,0.37761,2648.4,2648.2,0.372]
[1727079698420,0.37764,2648.2,2647.8,30.07768]
[1727079698616,3.2078,2648.5,2647.8,31.76]
[1727079698821,3.2078,2648.5,2648.0,2.06]
[1727079699120,0.37764,2648.2,2647.8,30.07768]
[1727079699718,0.37764,2648.2,2647.9,0.383]
[1727079700229,0.37764,2648.2,2647.9,0.76067]
[1727079700733,0.37764,2648.2,2647.9,0.383]
[1727079700926,3.2078,2648.5,2647.9,0.383]
[1727079700927,0.37766,2648.0,2647.9,0.383]
[1727079701327,0.37765,2648.1,2647.9,0.383]
[1727079702021,5.2678,2648.5,2647.9,0.383]
[1727079702234,0.37764,2648.2,2647.9,0.383]
[1727079703834,0.37764,2648.2,2647.9,0.76067]
[1727079704036,0.3776,2648.4,2648.0,0.37765]
[1727079704234,0.37762,2648.3,2648.0,0.37765]
[1727079704636,0.37761,2648.4,2648.0,0.37765]
[1727079704823,0.37761,2648.4,2648.1,0.37764]
[1727079706238,0.37762,2648.3,2648.1,0.37764]
[1727079706530,3.2078,2648.5,2648.1,0.37764]
[1727079706531,0.37761,2648.4,2648.1,0.37764]
[1727079706737,0.37761,2648.4,2647.9,0.383]
[1727079706925,0.37761,2648.4,2648.1,0.37764]
[1727079708339,0.37762,2648.3,2648.0,0.37765]
[1727079708530,0.37765,2648.1,2647.9,0.383]
[1727079708731,0.37766,2648.0,2647.9,0.383]
[1727079708934,0.37765,2648.1,2647.9,0.383]
[1727079709329,0.37765,2648.1,2647.8,30.07768]
[1727079710137,0.37764,2648.1,2647.8,30.07768]
[1727079710339,2.40506615,2648.4,2647.8,30.07768]
[1727079710633,0.37764,2648.2,2647.8,30.07768]
[1727079711339,0.37764,2648.2,2647.8,31.06036128]
[1727079711536,1.46105615,2648.4,2648.3,0.37761]
[1727079711736,1.46105615,2648.9,2648.3,4.19048128]
[1727079712037,0.37752,2649.0,2648.7,0.37755]
[1727079712240,0.37752,2649.0,2648.6,0.37756]
[1727079712430,0.37753,2648.9,2648.6,0.37756]
[1727079712841,0.37753,2648.9,2648.7,0.3977]
[1727079713046,0.37753,2648.9,2648.8,0.3697]
[1727079715137,0.37752,2649.0,2648.8,0.3697]
[1727079716833,0.37752,2649.0,2648.3,0.14193128]
[1727079716834,1.32161,2648.4,2648.3,0.14193128]
[1727079717036,1.32161,2648.4,2647.6,2.90693089]
[1727079717037,0.37772,2647.6,2647.3,1.83656544]
[1727079717247,0.37774,2647.4,2647.3,0.3831]
[1727079717542,0.37778,2647.2,2646.9,0.3874]
[1727079719440,0.37776,2647.3,2646.9,0.76521]
[1727079719644,0.37778,2647.2,2646.9,0.3874]
[1727079720042,0.37777,2647.3,2646.9,0.3874]
[1727079720754,0.37777,2647.3,2646.9,3.5952]
[1727079721256,0.37777,2647.2,2646.9,0.3874]
[1727079721454,0.37776,2647.3,2646.9,0.76521]
[1727079721643,0.37776,2647.3,2646.9,3.5952]
[1727079722344,4.68992417,2647.7,2647.1,0.37778]
[1727079722542,0.37774,2647.5,2646.9,3.5952]
[1727079723249,3.2078,2648.0,2647.3,3.2078]
[1727079723448,0.37772,2647.6,2647.3,3.2078]
[1727079723640,4.15196,2648.0,2647.3,3.2078]
[1727079723842,0.37774,2647.5,2647.0,5.42135544]
[1727079724043,0.37774,2647.5,2647.0,3.96789]
[1727079724250,0.37772,2647.6,2647.1,4.15538]
[1727079724449,0.94422,2647.8,2647.0,5.04356544]
[1727079724650,0.37773,2647.5,2647.1,0.37779]
[1727079725046,0.37773,2647.5,2647.1,4.15539]
[1727079725241,0.94422,2647.8,2647.1,3.7776]
[1727079725449,0.37774,2647.5,2647.1,0.37778]
[1727079725941,0.94422,2647.8,2647.2,6.9854]
[1727079725942,3.2078,2647.8,2647.2,6.9854]
[1727079726142,3.2078,2647.8,2647.5,0.37773]
[1727079726343,3.58549,2647.8,2647.6,0.7595]
[1727079726954,3.2078,2647.8,2647.6,0.7595]
[1727079727143,3.58549,2647.8,2647.6,0.7595]
[1727079728045,0.37769,2647.8,2647.6,0.7595]
[1727079728246,0.37769,2647.8,2647.6,3.9673]
[1727079728740,3.2078,2648.1,2647.1,4.66126544]
[1727079728741,0.37777,2647.2,2647.1,4.66126544]
[1727079728957,0.37777,2647.2,2647.1,3.2078]
[1727079729155,3.2078,2647.5,2647.0,0.3869]
[1727079729156,0.37779,2647.1,2647.0,0.3869]
[1727079730359,3.2078,2647.2,2646.8,32.9078]
[1727079730649,3.2078,2647.2,2646.5,0.3681]
[1727079730650,0.37782,2646.9,2646.5,0.3681]
[1727079730952,0.37783,2646.8,2646.6,29.7]
[1727079731154,3.2078,2647.2,2646.6,29.7]
[1727079731355,0.37781,2647.0,2646.6,30.07785]
[1727079731659,0.37782,2646.9,2646.6,29.7]
[1727079731945,0.37781,2647.0,2646.6,29.7]
[1727079732156,0.37779,2647.1,2646.6,30.07786]
[1727079732345,3.58558,2647.2,2646.7,0.37784]
[1727079732541,0.37779,2647.1,2646.8,3.2078]
[1727079732748,0.37779,2647.1,2646.7,0.37784]
[1727079732953,0.37779,2647.1,2646.8,3.2078]
[1727079733148,0.3778,2647.0,2646.8,3.2078]
[1727079734051,0.37781,2646.9,2646.6,29.7]
[1727079735355,0.37781,2646.9,2646.5,3.95376]
[1727079735356,0.37784,2646.8,2646.5,3.5759]
[1727079735947,0.37778,2647.2,2646.9,0.37781]
[1727079736148,0.37779,2647.1,2646.8,0.37782]
[1727079736443,4.127,2647.4,2646.8,0.37782]
[1727079736646,0.37779,2647.1,2646.8,0.37782]
[1727079737060,0.37778,2647.2,2646.9,0.37781]
[1727079737352,0.37778,2647.2,2646.5,33.2759]
[1727079737552,4.50475,2647.4,2647.1,0.37778]
[1727079737750,0.37773,2647.5,2647.2,0.76737]
[1727079737955,0.37774,2647.4,2647.2,0.3896]
[1727079738847,0.37779,2647.1,2646.8,3.5978]
[1727079739050,3.2078,2647.6,2647.1,0.37778]
[1727079739353,3.2078,2647.6,2646.9,0.37781]
[1727079739354,0.37778,2647.2,2646.9,0.37781]
[1727079739549,0.37778,2647.2,2646.9,3.58561]
[1727079739952,3.2078,2647.6,2646.8,0.39]
[1727079740153,3.2078,2647.6,2646.9,3.2078]
[1727079740454,0.37774,2647.5,2646.9,3.2078]
[1727079740657,0.37774,2647.5,2647.3,0.37776]
[1727079741161,0.37774,2647.5,2647.2,0.37776]
[1727079741354,0.37774,2647.5,2647.3,0.3631]
[1727079741862,0.37774,2647.4,2647.3,0.3631]
[1727079742252,0.37777,2647.3,2647.0,0.74789]
[1727079742448,0.37778,2647.2,2647.0,0.3701]
[1727079742649,0.37776,2647.3,2647.0,0.3701]
[1727079742956,0.37775,2647.4,2647.1,0.37778]
[1727079743156,0.37775,2647.4,2647.2,0.3847]
[1727079743758,0.37776,2647.3,2647.2,0.3847]
[1727079744065,0.37775,2647.4,2647.2,0.76246]